bitfinex-derivatives/quotes_ETHF0:USTF0_20240913
["timestamp","ask_amount","ask_price","bid_price","bid_amount"]
[1726252408489,1.07481926,2412.2,2412.1,3.23]
[1726252408689,1.48926926,2412.2,2412.1,3.23]
[1726252408889,1.07481926,2412.2,2412.1,3.23]
[1726252409089,1.48926926,2412.2,2412.1,3.23]
[1726252409295,1.48926926,2412.2,2411.9,3.5858]
[1726252409296,0.41447,2412.1,2412.0,3.23]
[1726252409495,2.02818352,2412.1,2412.0,3.23]
[1726252410700,1.4905776,2412.1,2412.0,3.23]
[1726252411091,2.02818352,2412.1,2412.0,3.23]
[1726252411892,0.41447,2412.1,2412.0,3.23]
[1726252412097,2.02825457,2412.1,2412.0,3.23]
[1726252412300,3.06443457,2412.1,2412.0,3.23]
[1726252412505,3.59831485,2412.1,2412.0,3.23]
[1726252416998,2.02868959,2412.1,2412.0,3.64449]
[1726252417200,1.61421959,2412.1,2412.0,3.23]
[1726252417398,1.49077112,2412.1,2412.0,3.9564]
[1726252417695,1.07630112,2412.1,2412.0,3.9564]
[1726252417898,1.07630112,2412.1,2412.0,8.51649]
[1726252418097,1.0761941,2412.3,2412.1,1.45065]
[1726252418302,1.61421959,2412.4,2412.3,0.41443]
[1726252418303,1.0761941,2412.4,2412.3,0.41443]
[1726252418502,1.0761941,2412.4,2412.3,3.64443]
[1726252418697,1.0761941,2412.5,2412.4,0.41442]
[1726252419209,1.0761941,2412.6,2412.5,0.4144]
[1726252419402,1.61421959,2412.6,2412.5,3.23]
[1726252419599,1.07595736,2412.6,2412.5,3.23]
[1726252419804,20.46768959,2412.7,2412.5,3.23]
[1726252420195,1.07592479,2412.6,2412.5,3.23]
[1726252421499,1.61421959,2412.6,2412.5,3.23]
[1726252422088,1.61421959,2412.6,2412.5,7.7892]
[1726252422305,1.61421959,2412.6,2412.5,3.23]
[1726252422502,1.07561905,2412.6,2412.5,3.23]
[1726252425903,1.07561905,2412.6,2412.5,3.6444]
[1726252426402,18.4391,2412.7,2412.6,0.41438]
[1726252426603,18.4391,2412.7,2412.6,4.55918]
[1726252426804,18.4391,2412.7,2412.6,4.95268]
[1726252427006,18.4391,2412.7,2412.6,5.79176446]
[1726252427208,18.4391,2412.7,2412.6,5.30098]
[1726252427596,5.4191,2412.7,2412.6,12.82772488]
[1726252427909,3.04518821,2412.7,2412.6,15.03819348]
[1726252428218,1.62708821,2412.7,2412.6,16.3827964]
[1726252428508,1.62708821,2412.7,2412.6,16.64736614]
[1726252429103,1.62708821,2412.7,2412.6,14.43755867]
[1726252429805,0.78198821,2412.7,2412.6,14.43755867]
[1726252430105,0.16498821,2412.7,2412.6,13.35387083]
[1726252430305,2.78771959,2413.4,2413.3,0.41426]
[1726252430306,2.24911905,2413.4,2413.3,0.41426]
[1726252430510,0.3981,2413.4,2413.3,0.41426]
[1726252430809,0.3981,2413.4,2413.2,6.4378]
[1726252431007,0.81235,2413.4,2413.2,6.4378]
[1726252431212,0.3981,2413.4,2413.2,6.4378]
[1726252431413,0.3981,2413.4,2413.2,6.85206]
[1726252431611,0.3981,2413.4,2413.3,0.41426]
[1726252431807,0.3981,2413.4,2413.3,4.55826]
[1726252433009,1.07561905,2413.6,2413.4,0.41424]
[1726252433211,0.3809,2413.6,2413.5,3.23]
[1726252433709,0.79511,2413.6,2413.5,3.23]
[1726252436615,0.3809,2413.6,2413.5,3.23]
[1726252436912,0.79511,2413.6,2413.5,3.23]
[1726252437512,0.3809,2413.6,2413.5,3.23]
[1726252437812,0.79511,2413.6,2413.5,3.23]
[1726252438603,0.79511,2413.6,2413.5,3.64423]
[1726252438805,0.79511,2413.6,2413.5,3.23]
[1726252439214,0.3809,2413.6,2413.5,3.64423]
[1726252440302,0.79511,2413.6,2413.5,3.23]
[1726252441009,0.3809,2413.6,2413.5,3.64423]
[1726252441512,0.79511,2413.6,2413.5,3.64423]
[1726252441721,0.3809,2413.6,2413.5,3.64423]
[1726252442612,0.79511,2413.6,2413.5,3.64423]
[1726252443808,0.3809,2413.6,2413.5,10.99523]
[1726252444709,0.3809,2413.6,2413.5,12.03081]
[1726252444908,0.3988,2414.0,2413.9,0.41416]
[1726252445111,0.3988,2414.0,2413.9,3.64416]
[1726252445315,0.3988,2414.0,2413.9,3.23]
[1726252446121,0.3988,2414.0,2413.9,3.64416]
[1726252446320,0.7867,2414.0,2413.9,3.64416]
[1726252446716,0.7867,2414.0,2413.9,3.23]
[1726252446913,0.7867,2414.0,2413.9,3.64416]
[1726252447214,1.20084,2414.0,2413.9,3.23]
[1726252447414,1.20084,2414.0,2413.5,3.52270328]
[1726252447415,1.20085,2414.0,2413.7,3.64418]
[1726252447615,0.41416,2413.9,2413.7,3.23]
[1726252447812,0.41418,2413.8,2413.7,3.23]
[1726252448011,0.41417,2413.9,2413.7,3.23]
[1726252448217,0.41418,2413.8,2413.7,3.23]
[1726252448816,0.41418,2413.8,2413.5,3.23]
[1726252449012,0.41419,2413.7,2413.5,3.64422]
[1726252449318,0.3957,2413.6,2413.5,3.64422]
[1726252449516,1.18331,2413.6,2413.5,3.23]
[1726252449720,1.18331,2413.6,2413.5,1.9962]
[1726252450024,0.7691,2413.6,2413.5,0.41423]
[1726252450221,0.3734,2413.6,2413.5,0.41423]
[1726252452230,0.3734,2413.6,2413.4,3.23]
[1726252452231,0.41423,2413.5,2413.4,3.23]
[1726252452921,1.19853,2413.5,2413.4,3.23]
[1726252453222,1.19853,2413.5,2413.0,3.23]
[1726252453223,0.4143,2413.1,2413.0,3.23]
[1726252453431,0.41429,2413.2,2413.0,3.23]
[1726252453748,0.41429,2413.2,2413.0,3.64431]
[1726252453921,0.393,2413.1,2413.0,3.64431]
[1726252454413,0.393,2413.1,2413.0,3.23]
[1726252455717,3.9921,2413.5,2413.0,7.374]
[1726252455924,0.393,2413.3,2413.2,0.41427]
[1726252456120,0.393,2413.3,2413.2,3.64427]
[1726252456731,0.7843,2413.5,2413.3,0.41426]
[1726252456918,0.7843,2413.5,2413.4,6.85204]
[1726252457129,0.41419,2413.8,2413.4,6.4378]
[1726252457322,0.41419,2413.8,2413.7,3.23]
[1726252457323,1.17899,2413.8,2413.7,3.23]
[1726252457528,0.7648,2413.8,2413.7,3.23]
[1726252457720,0.7648,2413.8,2413.7,6.4378]
[1726252458229,0.3896,2413.9,2413.7,6.85199]
[1726252458524,0.3896,2413.9,2413.7,3.23]
[1726252459025,0.3896,2413.9,2413.7,6.4378]
[1726252459428,0.3896,2413.9,2413.7,6.85199]
[1726252460024,0.3896,2413.9,2413.7,3.64419]
[1726252460623,0.3896,2413.9,2413.7,6.85199]
[1726252460819,0.3896,2413.9,2413.7,3.64419]
[1726252461216,0.3896,2413.9,2413.7,6.85199]
[1726252461731,1.07561905,2414.3,2413.7,6.85199]
[1726252461732,3.341,2414.8,2413.7,6.4378]
[1726252462026,7.49336703,2415.3,2413.7,6.4378]
[1726252462235,5.95335504,2417.4,2415.5,16.407]
[1726252462449,69.367,2424.9,2414.0,3.2078]
[1726252462450,7.02002156,2423.6,2422.8,1.0832983]
[1726252462629,5.35818962,2422.9,2422.2,3.2078]
[1726252462825,3.2078,2423.5,2422.5,3.2078]
[1726252463025,3.2078,2422.6,2420.8,3.2078]
[1726252463227,0.3136882,2423.6,2422.5,3.23]
[1726252463531,1.24852113,2424.3,2422.9,3.2078]
[1726252463724,1.24852113,2424.3,2423.0,5.97717966]
[1726252463725,3.2078,2424.2,2423.0,5.97717966]
[1726252463930,0.4087,2426.2,2424.0,6.46]
[1726252463931,3.2078,2424.9,2424.0,6.46]
[1726252464137,3.2078,2424.9,2423.6,3.2078]
[1726252464138,0.4087,2426.2,2424.8,7.6578]
[1726252464426,0.4087,2426.2,2424.1,1.93494855]
[1726252464427,3.2078,2425.6,2424.1,6.82938523]
[1726252464632,3.2078,2425.5,2424.2,0.64501423]
[1726252464826,40.8,2426.1,2424.3,0.64461727]
[1726252464827,3.2078,2424.6,2424.3,0.64461727]
[1726252465023,3.2078,2425.3,2424.3,0.64461727]
[1726252465225,3.2078,2425.3,2424.2,0.24596604]
[1726252465226,3.2078,2425.0,2424.2,0.24596604]
[1726252465433,3.2078,2425.0,2424.3,0.24596604]
[1726252465624,3.2078,2425.0,2423.4,3.2078]
[1726252465625,9.2078,2425.0,2423.4,3.2078]
[1726252465819,40.8,2424.9,2423.4,3.2078]
[1726252466020,3.2078,2424.7,2422.6,3.2078]
[1726252466229,4.45,2424.3,2423.1,0.208]
[1726252466424,4.45,2424.3,2421.3,1.07041795]
[1726252466425,3.2078,2423.2,2421.3,1.07041795]
[1726252466733,3.2078,2421.4,2420.3,3.2078]
[1726252466927,3.2078,2421.1,2419.7,0.4128]
[1726252467224,3.2078,2421.1,2420.5,3.2078]
[1726252467225,40.8,2421.1,2420.5,3.2078]
[1726252467528,1.03136,2423.4,2419.3,18.445797]
[1726252467529,2.37883766,2424.4,2424.3,17.07287]
[1726252467729,2.37883766,2424.4,2419.0,11.18445829]
[1726252467730,3.2078,2423.7,2421.9,3.2078]
[1726252468030,3.2078,2422.6,2421.7,3.2078]
[1726252468224,1.03098,2424.3,2422.0,3.2078]
[1726252468225,3.2078,2423.2,2422.0,3.2078]
[1726252468421,44.0078,2423.5,2422.3,3.2078]
[1726252468624,3.2078,2424.0,2422.6,3.2078]
[1726252468921,0.3887,2424.6,2422.9,3.2078]
[1726252468922,3.2078,2424.2,2422.9,3.2078]
[1726252469122,3.2078,2424.5,2423.2,3.2078]
[1726252469332,0.3887,2424.6,2423.1,3.2078]
[1726252469333,3.2078,2424.2,2423.1,3.2078]
[1726252469532,3.2078,2424.9,2423.8,3.2078]
[1726252469832,3.2078,2425.6,2424.7,3.2078]
[1726252470027,0.4105,2426.2,2423.2,9.76009787]
[1726252470028,3.2078,2425.0,2424.0,3.2078]
[1726252470233,3.2078,2424.9,2424.0,3.2078]
[1726252470526,3.2078,2425.1,2424.3,3.2078]
[1726252470734,3.2078,2425.6,2424.6,3.2078]
[1726252470927,3.2078,2425.6,2424.9,3.2078]
[1726252471121,0.207,2426.1,2425.3,3.2078]
[1726252471323,0.41208,2426.1,2425.3,3.2078]
[1726252471530,0.82256,2426.2,2425.3,3.2078]
[1726252471832,0.82257,2426.2,2425.3,3.2078]
[1726252472129,3.2078,2426.0,2425.3,3.2078]
[1726252472321,3.2078,2426.3,2425.7,3.2078]
[1726252472525,3.2078,2426.1,2425.4,0.207]
[1726252472735,3.2078,2426.1,2425.6,3.2078]
[1726252473225,0.3775,2426.5,2425.1,0.207]
[1726252473226,3.2078,2426.5,2425.9,3.2078]
[1726252473427,3.2078,2426.7,2426.3,3.2078]
[1726252473631,3.2078,2426.7,2426.0,3.2078]
[1726252473927,3.2078,2426.4,2425.7,3.2078]
[1726252474135,3.61978,2426.7,2425.7,3.2078]
[1726252474332,2.77737879,2426.7,2426.0,3.2078]
[1726252474533,3.18935879,2426.7,2425.7,3.2078]
[1726252474834,3.18935879,2426.7,2425.5,0.207]
[1726252474835,2.77737879,2426.7,2426.0,3.2078]
[1726252475034,0.207,2427.2,2426.4,3.2078]
[1726252475236,0.207,2427.8,2426.8,3.2078]
[1726252475422,4.8418,2429.1,2426.8,0.207]
[1726252475423,3.2078,2427.4,2426.8,0.207]
[1726252475627,3.2078,2427.2,2426.3,3.2078]
[1726252476128,3.2078,2427.6,2426.6,3.2078]
[1726252476332,0.41187,2427.3,2426.3,3.2078]
[1726252476524,0.41187,2427.3,2426.6,3.2078]
[1726252476726,0.41184,2427.5,2426.6,3.2078]
[1726252477134,3.2078,2427.6,2426.9,3.2078]
[1726252477338,3.2078,2427.6,2426.6,3.2078]
[1726252477532,3.2078,2427.5,2426.3,3.2078]
[1726252477732,3.2078,2427.5,2425.8,8.59656104]
[1726252477733,3.2078,2426.7,2425.8,8.59656104]
[1726252477935,3.2078,2426.7,2426.0,3.2078]
[1726252478241,3.2078,2427.2,2426.3,3.2078]
[1726252478428,3.2078,2427.6,2426.4,3.2078]
[1726252478626,3.2078,2427.6,2426.0,0.41209]
[1726252478627,0.41194,2426.9,2426.8,3.2078]
[1726252478827,3.2078,2427.6,2426.8,3.2078]
[1726252479222,0.41187,2427.4,2427.1,3.2078]
[1726252479429,3.2078,2427.6,2427.1,3.2078]
[1726252479625,4.12,2427.5,2427.1,3.2078]
[1726252479827,3.2078,2427.3,2426.1,0.207]
[1726252480038,3.2078,2426.7,2425.8,3.2078]
[1726252480235,3.2078,2427.2,2426.1,3.2078]
[1726252480428,3.2078,2426.9,2426.1,3.2078]
[1726252480831,0.4122,2425.4,2425.3,0.207]
[1726252481034,3.2078,2425.6,2424.3,3.2078]
[1726252481336,0.41218,2425.5,2424.9,3.2078]
[1726252481535,0.41219,2425.5,2424.9,3.2078]
[1726252481736,3.2078,2425.8,2424.9,3.2078]
[1726252481951,3.2078,2425.8,2425.3,3.2078]
[1726252482136,3.2078,2426.1,2425.3,3.2078]
[1726252482639,0.41219,2425.5,2425.3,3.2078]
[1726252482837,1.03028,2425.9,2425.3,3.2078]
[1726252483039,0.4122,2425.4,2425.3,3.2078]
[1726252483239,0.41219,2425.5,2425.3,3.2078]
[1726252483436,3.2078,2426.1,2425.3,3.2078]
[1726252483635,0.41215,2425.7,2425.3,3.2078]
[1726252484029,3.2078,2426.4,2425.3,3.2078]
[1726252484030,1.03016,2426.2,2425.3,3.2078]
[1726252484230,1.03028,2426.0,2425.3,3.2078]
[1726252484734,1.03008,2426.4,2425.6,3.2078]
[1726252485036,3.2078,2426.8,2426.0,3.2078]
[1726252485236,0.412,2426.6,2426.0,3.2078]
[1726252485435,3.2078,2426.8,2426.0,3.2078]
[1726252485637,0.41199,2426.7,2426.0,3.2078]
[1726252485937,3.2078,2427.2,2426.6,3.2078]
[1726252486145,0.41196,2426.9,2426.6,3.2078]
[1726252486436,0.41197,2426.7,2426.2,3.2078]
[1726252486640,0.41205,2426.3,2426.2,3.2078]
[1726252486838,0.41203,2426.4,2426.2,3.2078]
[1726252487134,3.2078,2426.9,2426.2,3.2078]
[1726252487646,1.0299,2426.8,2426.2,3.2078]
[1726252488134,0.41203,2426.4,2426.2,3.2078]
[1726252488329,1.0299,2426.8,2426.2,3.2078]
[1726252488535,1.0299,2426.8,2425.3,0.207]
[1726252488536,3.2078,2427.2,2426.5,3.2078]
[1726252488739,0.41198,2426.7,2426.5,3.2078]
[1726252489342,0.41198,2426.7,2426.1,8.06987]
[1726252489543,1.02978,2427.1,2426.1,7.6578]
[1726252489744,1.02978,2427.1,2426.4,3.2078]
[1726252489945,3.2078,2426.9,2426.4,3.2078]
[1726252490243,0.41201,2426.5,2426.4,3.2078]
[1726252490945,4.53361,2426.5,2426.4,3.2078]
[1726252491153,4.53361,2426.5,2425.8,4.45]
[1726252491154,0.41211,2425.9,2425.4,4.45]
[1726252491334,4.2378,2426.6,2425.1,3.2078]
[1726252491335,0.41223,2425.3,2425.1,3.2078]
[1726252491541,0.41217,2425.6,2425.1,3.2078]
[1726252491843,3.2078,2425.8,2425.4,3.2078]
[1726252492043,0.41214,2425.8,2425.7,3.2078]
[1726252492235,1.03028,2425.9,2425.4,3.2078]
[1726252492545,0.41218,2425.5,2425.4,3.2078]
[1726252493052,4.53538,2425.5,2425.4,3.2078]
[1726252493547,4.53538,2425.5,2424.2,1.23798]
[1726252493548,4.53538,2425.5,2424.2,0.207]
[1726252493549,1.0308,2424.7,2424.2,0.207]
[1726252493744,1.03096,2424.3,2424.0,3.2078]
[1726252493939,1.03101,2424.2,2423.7,3.2078]
[1726252494140,1.44347,2424.1,2424.0,3.2078]
[1726252494451,1.44347,2424.1,2423.0,4.45]
[1726252494452,0.41242,2424.1,2423.6,3.2078]
[1726252494645,0.41248,2423.7,2423.6,3.2078]
[1726252494845,0.41254,2423.4,2423.3,3.2078]
[1726252495148,1.03118,2423.8,2423.3,3.2078]
[1726252495348,0.41254,2423.4,2423.3,3.2078]
[1726252495540,0.41259,2423.1,2422.8,3.2078]
[1726252495845,0.41258,2423.2,2422.8,3.2078]
[1726252496043,1.03122,2423.7,2423.1,3.2078]
[1726252496242,3.2078,2424.3,2423.1,3.2078]
[1726252496441,0.41256,2423.3,2423.1,3.2078]
[1726252496749,1.03105,2424.1,2423.1,3.2078]
[1726252497046,0.41257,2423.2,2423.1,3.2078]
[1726252497551,1.03122,2423.7,2423.1,3.2078]
[1726252497744,0.41256,2423.3,2423.1,3.2078]
[1726252498057,0.41257,2423.2,2423.1,3.2078]
[1726252498254,0.41256,2423.3,2423.1,3.2078]
[1726252499047,0.41257,2423.2,2423.1,3.2078]
[1726252499251,1.03136,2423.4,2422.6,0.4011]
[1726252499252,0.41264,2422.8,2422.7,3.2078]
[1726252499451,0.41263,2422.9,2422.7,3.2078]
[1726252499648,1.03139,2423.3,2422.7,3.2078]
[1726252499847,0.41261,2423.0,2422.8,3.2078]
[1726252500344,1.03124,2423.7,2422.9,4.1272]
[1726252500541,0.41255,2423.3,2423.2,3.2078]
[1726252500742,0.41255,2423.3,2423.0,4.45]
[1726252500743,0.41259,2423.2,2423.0,3.2078]
[1726252500951,3.2078,2424.2,2423.0,3.2078]
[1726252501152,1.03109,2424.0,2423.4,3.2078]
[1726252501351,3.2078,2423.9,2423.4,3.2078]
[1726252501546,0.41252,2423.5,2423.4,3.2078]
[1726252501848,1.03126,2423.6,2423.0,3.2078]
[1726252501849,0.41259,2423.1,2423.0,3.2078]
[1726252502047,1.0313,2423.5,2422.7,8.07044]
[1726252502346,0.41258,2423.2,2422.8,0.41264]
[1726252502558,1.0313,2423.5,2423.0,3.2078]
[1726252502750,0.41258,2423.2,2423.0,3.2078]
[1726252502948,3.2078,2423.6,2423.0,3.2078]
[1726252503245,4.23894,2423.9,2423.3,3.2078]
[1726252503443,1.03118,2423.8,2423.0,4.45]
[1726252503659,0.41257,2423.2,2422.9,3.2078]
[1726252503862,0.41257,2423.2,2422.0,0.207]
[1726252503863,3.2078,2423.2,2421.9,3.2078]
[1726252504056,3.2078,2423.2,2421.1,3.4148]
[1726252504057,3.2078,2422.2,2421.1,3.4148]
[1726252504258,3.2078,2421.9,2421.1,3.2078]
[1726252504471,0.41291,2421.2,2421.1,3.2078]
[1726252504773,6.51358,2422.4,2421.1,3.2078]
[1726252504774,0.41285,2421.6,2421.1,3.2078]
[1726252505052,1.03182,2422.3,2421.4,3.2078]
[1726252505251,3.2078,2422.1,2421.4,3.2078]
[1726252505455,0.41282,2421.8,2421.4,3.2078]
[1726252505754,1.03194,2422.0,2421.4,3.2078]
[1726252505952,0.41286,2421.6,2421.4,3.2078]
[1726252506147,1.03194,2422.0,2421.4,3.2078]
[1726252506355,0.41286,2421.5,2421.4,3.2078]
[1726252506956,1.03194,2422.0,2421.4,3.2078]
[1726252507254,0.41286,2421.5,2421.4,3.2078]
[1726252508353,3.2078,2421.9,2421.4,3.2078]
[1726252508560,0.41285,2421.6,2421.4,3.2078]
[1726252508857,3.2078,2421.9,2421.4,3.2078]
[1726252509054,0.41286,2421.5,2421.4,3.2078]
[1726252509353,3.2078,2421.9,2421.4,3.2078]
[1726252509550,0.41286,2421.5,2421.4,3.2078]
[1726252510650,0.41292,2421.2,2421.1,3.2078]
[1726252511251,0.4128,2421.9,2421.4,0.41287]
[1726252511453,0.41284,2421.6,2421.5,4.45]
[1726252511653,3.2078,2422.7,2421.4,3.2078]
[1726252511654,1.03178,2422.4,2421.4,3.2078]
[1726252511956,0.41284,2421.6,2421.4,3.2078]
[1726252512355,1.0321,2421.7,2421.1,3.2078]
[1726252512556,0.41281,2421.8,2421.4,3.62067]
[1726252512757,1.03194,2422.0,2421.4,3.2078]
[1726252513054,1.03176,2422.5,2421.7,3.2078]
[1726252513256,4.8299,2423.5,2421.3,3.2078]
[1726252513257,4.23957,2422.4,2421.3,3.2078]
[1726252513452,0.41283,2421.7,2421.6,3.2078]
[1726252513653,0.41282,2421.7,2421.6,3.2078]
[1726252513849,0.41278,2422.0,2421.6,3.2078]
[1726252514156,1.03181,2422.3,2421.6,3.2078]
[1726252514358,0.4128,2421.9,2421.6,3.2078]
[1726252514750,1.0318,2422.4,2421.6,3.2078]
[1726252514947,0.41276,2422.1,2421.9,3.2078]
[1726252515158,0.41275,2422.2,2421.9,3.2078]
[1726252515360,3.2078,2422.7,2421.9,3.2078]
[1726252515554,3.2078,2422.7,2422.1,3.2078]
[1726252515754,1.03152,2423.0,2422.1,3.2078]
[1726252515954,4.2392,2423.3,2422.7,3.2078]
[1726252516152,4.2392,2423.3,2422.6,0.41266]
[1726252516153,1.03113,2423.9,2423.1,3.2078]
[1726252516362,0.41264,2422.9,2422.8,3.2078]
[1726252516659,1.03144,2423.2,2422.8,3.2078]
[1726252516660,0.41261,2423.0,2422.8,3.2078]
[1726252516866,0.4126,2423.1,2422.8,3.2078]
[1726252517067,1.03136,2423.4,2422.8,3.2078]
[1726252517256,1.03136,2423.4,2421.9,1.41567]
[1726252517257,3.2078,2423.3,2422.5,3.2078]
[1726252517477,1.0316,2422.9,2422.2,3.2078]
[1726252517657,0.41272,2422.3,2422.2,3.2078]
[1726252517961,1.03164,2422.8,2422.2,3.2078]
[1726252518158,0.41272,2422.3,2422.2,3.2078]
[1726252518556,4.54072,2422.3,2422.2,3.2078]
[1726252519062,1.03156,2422.9,2422.2,7.3358]
[1726252519271,0.41267,2422.6,2422.5,3.2078]
[1726252519764,4.128,2422.6,2422.1,3.2078]
[1726252519958,0.41273,2422.3,2422.1,3.2078]
[1726252520157,4.23938,2422.9,2421.6,3.2078]
[1726252520158,1.03186,2422.2,2421.6,3.2078]
[1726252520366,0.4128,2421.9,2421.6,3.2078]
[1726252520563,0.41279,2421.9,2421.6,3.2078]
[1726252521168,0.41278,2422.0,2421.6,3.62064]
[1726252521370,0.41277,2422.1,2421.9,3.2078]
[1726252521571,0.41275,2422.2,2421.9,3.2078]
[1726252521867,0.41277,2422.1,2421.9,3.2078]
[1726252522572,0.41277,2422.1,2422.0,3.2078]
[1726252523263,4.23953,2422.6,2422.0,3.2078]
[1726252523471,1.03146,2423.2,2422.3,3.2078]
[1726252523771,4.45,2424.0,2423.1,4.45]
[1726252523772,3.2078,2424.0,2423.1,4.45]
[1726252524064,1.03113,2423.9,2423.3,0.41255]
[1726252524282,0.41249,2423.7,2423.3,0.41255]
[1726252524470,0.41248,2423.8,2423.5,3.2078]
[1726252524665,1.03101,2424.2,2423.5,3.62031]
[1726252524868,0.41245,2423.9,2423.8,3.2078]
[1726252525068,3.2078,2424.4,2423.8,3.2078]
[1726252525287,3.2078,2425.9,2424.3,7.6578]
[1726252525568,0.41221,2425.3,2425.2,3.2078]
[1726252525766,3.2078,2426.1,2425.2,3.2078]
[1726252525968,0.41228,2424.9,2424.8,3.2078]
[1726252526168,3.2078,2425.3,2424.5,3.2078]
[1726252526464,1.03047,2425.5,2424.5,3.2078]
[1726252526465,3.2078,2425.5,2424.5,3.2078]
[1726252526670,1.03063,2425.1,2424.8,3.2078]
[1726252526870,0.41234,2424.6,2424.1,4.45]
[1726252527069,1.03058,2425.2,2424.5,3.2078]
[1726252527271,1.03058,2425.2,2424.7,3.2078]
[1726252527272,0.4123,2424.8,2424.7,3.2078]
[1726252527470,1.03054,2425.3,2424.7,3.2078]
[1726252527669,1.03054,2425.3,2425.0,3.2078]
[1726252527670,0.41222,2425.3,2425.0,3.2078]
[1726252527875,0.41225,2425.1,2425.0,3.2078]
[1726252528260,4.53625,2425.1,2425.0,3.2078]
[1726252528465,0.41224,2425.2,2425.0,3.2078]
[1726252528868,0.41222,2425.3,2425.0,3.2078]
[1726252529260,40.8,2425.7,2425.0,3.2078]
[1726252529261,0.4122,2425.4,2425.0,3.2078]
[1726252529469,3.2078,2426.1,2425.3,3.2078]
[1726252529666,0.41215,2425.7,2425.4,3.2078]
[1726252529874,1.03021,2426.1,2425.4,3.2078]
[1726252530071,1.03007,2426.4,2425.4,3.2078]
[1726252530278,0.41215,2425.7,2425.4,3.2078]
[1726252530479,0.41218,2425.5,2425.4,3.2078]
[1726252530673,0.41225,2425.1,2425.0,3.2078]
[1726252530971,4.53625,2425.1,2425.0,3.2078]
[1726252531272,4.53625,2425.1,2424.5,4.45]
[1726252531273,0.41229,2424.9,2424.7,3.2078]
[1726252531474,0.4123,2424.8,2424.7,3.2078]
[1726252531782,1.44305,2424.8,2424.7,3.2078]
[1726252531973,11.56705,2424.8,2424.7,3.2078]
[1726252532168,0.41239,2424.3,2424.2,3.2078]
[1726252532363,1.03096,2424.3,2423.9,3.2078]
[1726252532577,5.26881,2425.4,2423.0,0.5865]
[1726252532578,1.03081,2424.7,2423.5,3.2078]
[1726252532767,1.03081,2424.7,2423.0,3.2078]
[1726252532768,1.03121,2423.8,2423.0,3.2078]
[1726252533065,0.41254,2423.4,2423.3,3.2078]
[1726252533267,0.41253,2423.5,2423.0,3.2078]
[1726252533462,0.41255,2423.4,2423.3,3.2078]
[1726252533667,0.41251,2423.6,2423.3,3.2078]
[1726252534266,0.41254,2423.4,2423.3,3.2078]
[1726252534472,4.53894,2423.4,2423.3,3.2078]
[1726252534675,10.53894,2423.4,2423.3,3.2078]
[1726252534868,0.41258,2423.2,2422.9,4.45]
[1726252535072,0.41258,2423.2,2423.1,3.2078]
[1726252535480,4.53978,2423.2,2423.1,3.2078]
[1726252535867,0.4126,2423.0,2422.6,4.45]
[1726252536072,0.41252,2423.5,2422.8,3.2078]
[1726252536267,0.41254,2423.4,2423.3,3.2078]
[1726252536774,10.53894,2423.4,2423.3,3.2078]
[1726252537175,0.41256,2423.3,2423.2,3.2078]
[1726252537682,10.53896,2423.3,2423.2,3.2078]
[1726252537877,4.53895,2423.3,2423.2,3.2078]
[1726252538471,1.03118,2423.8,2423.2,3.2078]
[1726252538671,0.4125,2423.6,2423.5,3.2078]
[1726252538880,1.44376,2423.6,2423.5,3.2078]
[1726252539080,10.5389,2423.6,2423.5,3.2078]
[1726252539292,0.4125,2423.6,2423.5,3.2078]
[1726252539474,1.03112,2424.0,2423.3,4.45]
[1726252539677,1.03112,2424.0,2423.4,3.2078]
[1726252539874,0.41252,2423.5,2423.4,3.2078]
[1726252540580,1.03105,2424.1,2423.4,3.2078]
[1726252540888,0.4125,2423.6,2423.4,3.2078]
[1726252541185,0.41252,2423.5,2423.4,3.2078]
[1726252542480,1.03105,2424.1,2423.4,3.2078]
[1726252542786,0.4125,2423.6,2423.4,3.2078]
[1726252542986,0.41249,2423.7,2423.4,3.2078]
[1726252543683,1.03102,2424.2,2423.4,3.2078]
[1726252543879,0.41245,2423.9,2423.8,3.2078]
[1726252544080,0.41246,2423.9,2423.8,3.2078]
[1726252544277,0.41248,2423.8,2423.7,3.2078]
[1726252544675,0.4125,2423.7,2423.3,7.6578]
[1726252544972,1.03095,2424.4,2423.3,7.6578]
[1726252544973,3.2078,2424.5,2423.6,3.2078]
[1726252545182,1.03096,2424.3,2423.9,3.2078]
[1726252545378,1.03096,2424.3,2424.0,3.2078]
[1726252545379,0.41239,2424.3,2424.0,3.2078]
[1726252545581,0.41235,2424.5,2424.2,4.45]
[1726252545784,0.7778,2425.3,2424.4,3.2078]
[1726252546083,1.03067,2425.0,2424.4,3.2078]
[1726252546276,40.8,2425.2,2424.4,3.2078]
[1726252546477,7.3318,2425.1,2424.1,3.2078]
[1726252546678,0.41239,2424.3,2424.0,3.2078]
[1726252546890,1.03076,2424.8,2424.0,3.2078]
[1726252546891,0.41235,2424.5,2424.0,3.2078]
[1726252547188,0.41235,2424.5,2424.4,3.2078]
[1726252548186,0.41233,2424.7,2424.4,7.6578]
[1726252549081,3.2078,2424.9,2424.4,7.6578]
[1726252549286,0.41233,2424.7,2424.4,7.6578]
[1726252549582,1.03067,2425.0,2424.4,7.6578]
[1726252549788,1.03058,2425.2,2424.7,3.2078]
[1726252549994,0.41225,2425.1,2425.0,3.2078]
[1726252550478,0.4123,2424.8,2424.6,3.2078]